fUSD/lending_fUSD_20260213
["ID","MTS","AMOUNT","RATE_DAILY","PERIOD"]
[405319215,1770991844103,-193.0,0.00016659,2]
[405319216,1770991844112,-381.0,0.00016758,2]
[405319217,1770991844122,-38373.52974178,0.000168,2]
[405319218,1770991844131,-5698.42074612,0.0001682,2]
[405319219,1770991844141,-299.55,0.00016941,2]
[405319220,1770991844150,-30413.48679149,0.0001695,2]
[405319221,1770991844160,-300.0,0.00017,2]
[405319222,1770991844170,-298.54302448,0.00017158,5]
[405319223,1770991844179,-38373.52974178,0.000173,2]
[405319224,1770991844188,-350.0,0.00017308,2]
[405319225,1770991844198,-3162.0,0.00017327,2]
[405319226,1770991844208,-199.68586065,0.00017386,2]
[405319227,1770991844218,-161.84,0.00017434,2]
[405319228,1770991844227,-4315.24371304,0.000176,2]
[405319229,1770991844237,-1139.627878,0.00017634,7]
[405319230,1770991844247,-161.84,0.00017641,2]
[405319231,1770991844257,-279.0,0.00017738,2]
[405319232,1770991844266,-30413.48679149,0.00017776,2]
[405319233,1770991844275,-38373.52974178,0.000178,2]
[405319234,1770991844285,-300.0,0.000178,6]
[405319235,1770991844295,-500.0,0.00017808,2]
[405319236,1770991844304,-607.89395114,0.00017808,2]
[405319237,1770991844314,-607.89395114,0.00017808,2]
[405319238,1770991844324,-607.89395114,0.00017808,2]
[405319239,1770991844387,-607.89395114,0.00017808,2]
[405319240,1770991844397,-607.89395114,0.00017808,2]
[405319241,1770991844407,-607.89395114,0.00017808,2]
[405319242,1770991844416,-607.89395114,0.00017808,2]
[405319243,1770991844426,-607.89395114,0.00017808,2]
[405319244,1770991844435,-607.89395114,0.00017808,2]
[405319245,1770991844444,-607.89395114,0.00017808,2]
[405319246,1770991844454,-607.89395114,0.00017808,2]
[405319247,1770991844463,-607.89395114,0.00017808,2]
[405319248,1770991844473,-607.89395114,0.00017808,2]
[405319249,1770991844482,-801.45328236,0.00017808,2]
[405319250,1770991844492,-500.0,0.00017863,2]
[405319251,1770991844502,-860.02590149,0.00017866,2]
[405319252,1770991844511,-300.0,0.00017875,2]
[405319253,1770991844521,-591.64,0.00017875,2]
[405319254,1770991844531,-591.64,0.00017875,2]
[405319255,1770991844541,-591.64,0.00017875,2]
[405319256,1770991844551,-591.64,0.00017875,2]
[405319257,1770991844561,-591.64,0.00017875,2]
[405319258,1770991844572,-591.64,0.00017875,2]
[405319259,1770991844582,-591.64,0.00017875,2]
[405319260,1770991844591,-591.64,0.00017875,2]
[405319261,1770991844600,-591.85557058,0.00017875,2]
[405319262,1770991844609,-722.32,0.00017875,2]
[405319263,1770991844619,-722.32,0.00017875,2]
[405319264,1770991844628,-722.32,0.00017875,2]
[405319265,1770991844637,-722.32,0.00017875,2]
[405319266,1770991844648,-722.32,0.00017875,2]
[405319267,1770991844657,-722.32,0.00017875,2]
[405319268,1770991844667,-722.32,0.00017875,2]
[405319269,1770991844677,-722.32,0.00017875,2]
[405319270,1770991844686,-722.45486272,0.00017875,2]
[405319271,1770991844696,-1197.3,0.00017875,2]
[405319272,1770991844705,-1197.3,0.00017875,2]
[405319273,1770991844715,-1197.3,0.00017875,2]
[405319274,1770991844724,-1197.3,0.00017875,2]
[405319275,1770991844733,-1197.3,0.00017875,2]
[405319276,1770991844742,-1197.3,0.00017875,2]
[405319277,1770991844753,-1197.3,0.00017875,2]
[405319278,1770991844762,-1197.3,0.00017875,2]
[405319279,1770991844771,-1197.32571045,0.00017875,2]
[405319280,1770991844783,-1137.19,0.00017875,2]
[405319281,1770991844793,-1137.19,0.00017875,2]
[405319282,1770991844802,-1137.19,0.00017875,2]
[405319283,1770991844812,-1137.19,0.00017875,2]
[405319284,1770991844822,-1137.19,0.00017875,2]
[405319285,1770991844832,-1137.19,0.00017875,2]
[405319286,1770991844842,-1137.19,0.00017875,2]
[405319287,1770991844852,-1137.19,0.00017875,2]
[405319288,1770991844861,-1137.37012897,0.00017875,2]
[405319289,1770991844870,-1410.82,0.00017875,2]
[405319290,1770991844880,-1410.82,0.00017875,2]
[405319291,1770991844891,-1410.82,0.00017875,2]
[405319292,1770991844900,-1410.82,0.00017875,2]
[405319293,1770991844909,-1410.82,0.00017875,2]
[405319294,1770991844919,-981.7,0.00017875,2]
[405319295,1770991844928,-981.7,0.00017875,2]
[405319296,1770991844938,-981.7,0.00017875,2]
[405319297,1770991844947,-981.7,0.00017875,2]
[405319298,1770991844957,-981.7,0.00017875,2]
[405319299,1770991844966,-981.7,0.00017875,2]
[405319300,1770991844975,-981.7,0.00017875,2]
[405319301,1770991844984,-981.7,0.00017875,2]
[405319302,1770991844993,-981.769748,0.00017875,2]
[405319303,1770991845003,-500.0,0.00017875,2]
[405319304,1770991845012,-500.0,0.00017875,2]
[405319305,1770991845021,-500.0,0.00017875,2]
[405319306,1770991845030,-500.0,0.00017875,2]
[405319307,1770991845040,-500.0,0.00017875,2]
[405319308,1770991845049,-500.0,0.00017875,2]
[405319309,1770991845059,-313.3815855,0.00017875,2]
[405319310,1770991845067,-691.13,0.00017875,2]
[405319311,1770991845077,-691.13,0.00017875,2]
[405319312,1770991845086,-691.13,0.00017875,2]
[405319313,1770991845095,-691.13,0.00017875,2]
[405319314,1770991845105,-691.13,0.00017875,2]
[405319315,1770991845114,-691.13,0.00017875,2]
[405319316,1770991845124,-691.13,0.00017875,2]
[405319317,1770991845133,-691.13,0.00017875,2]
[405319318,1770991845142,-691.31442771,0.00017875,2]
[405319319,1770991845151,-615.27,0.00017875,2]
[405319320,1770991845162,-615.27,0.00017875,2]
[405319321,1770991845171,-615.27,0.00017875,2]
[405319322,1770991845180,-615.27,0.00017875,2]
[405319323,1770991845190,-615.27,0.00017875,2]
[405319324,1770991845199,-615.27,0.00017875,2]
[405319325,1770991845208,-615.27,0.00017875,2]
[405319326,1770991845217,-615.27,0.00017875,2]
[405319327,1770991845226,-615.33754888,0.00017875,2]
[405319328,1770991845236,-500.0,0.00017875,2]
[405319329,1770991845245,-500.0,0.00017875,2]
[405319330,1770991845254,-191.66731724,0.00017875,2]
[405319331,1770991845264,-500.0,0.00017875,2]
[405319332,1770991845273,-500.0,0.00017875,2]
[405319333,1770991845283,-500.0,0.00017875,2]
[405319334,1770991845292,-500.0,0.00017875,2]
[405319335,1770991845301,-500.0,0.00017875,2]
[405319336,1770991845311,-500.0,0.00017875,2]
[405319337,1770991845320,-495.54112114,0.00017875,2]
[405319338,1770991845329,-1438.79,0.00017875,2]
[405319339,1770991845339,-1438.79,0.00017875,2]
[405319340,1770991845348,-1438.79,0.00017875,2]
[405319341,1770991845357,-1438.79,0.00017875,2]
[405319342,1770991845366,-1438.79,0.00017875,2]
[405319343,1770991845376,-1438.79,0.00017875,2]
[405319344,1770991845386,-1438.79,0.00017875,2]
[405319345,1770991845395,-1438.79,0.00017875,2]
[405319346,1770991845406,-1438.88770196,0.00017875,2]
[405319347,1770991845415,-616.8,0.00017875,2]
[405319348,1770991845424,-616.8,0.00017875,2]
[405319349,1770991845434,-616.8,0.00017875,2]
[405319350,1770991845444,-616.8,0.00017875,2]
[405319351,1770991845454,-616.8,0.00017875,2]
[405319352,1770991845463,-616.8,0.00017875,2]
[405319353,1770991845472,-616.8,0.00017875,2]
[405319354,1770991845481,-616.90997361,0.00017875,2]
[405319355,1770991845491,-529.45,0.00017875,2]
[405319356,1770991845500,-529.45,0.00017875,2]
[405319357,1770991845510,-529.45,0.00017875,2]
[405319358,1770991845519,-529.45,0.00017875,2]
[405319359,1770991845529,-529.45,0.00017875,2]
[405319360,1770991845539,-529.45,0.00017875,2]
[405319361,1770991845549,-529.45,0.00017875,2]
[405319362,1770991845558,-529.45,0.00017875,2]
[405319363,1770991845568,-529.67601554,0.00017875,2]
[405319364,1770991845577,-500.0,0.00017875,2]
[405319365,1770991845587,-500.0,0.00017875,2]
[405319366,1770991845596,-500.0,0.00017875,2]
[405319367,1770991845606,-500.0,0.00017875,2]
[405319368,1770991845616,-500.0,0.00017875,2]
[405319369,1770991845625,-500.0,0.00017875,2]
[405319370,1770991845635,-459.69931234,0.00017875,2]
[405319371,1770991845648,-1194757.45297103,0.00017876,2]
[405319373,1770991845832,-336.41,0.00017876,2]
[405319375,1770991845844,-304.14982411,0.00017876,2]
[405319376,1770991845943,-405.36,0.00017876,2]
[405319377,1770991845955,-1392.10538075,0.00017876,2]
[405319378,1770991845975,-394.67472011,0.00017876,2]
[405319379,1770991845986,-406.30979213,0.00017876,2]
[405319380,1770991845997,-337.065,0.00017876,2]
[405319381,1770991846016,-412.8989822,0.00017876,2]
[405319382,1770991846028,-269.59985751,0.00017876,2]
[405319383,1770991846213,-237.66,0.00013699,2]
[405319384,1770991846222,-775.5893245,0.00017876,2]
[405319385,1770991846418,-200.10817907,0.00010341,2]
[405319386,1770991846429,-9221.77905567,0.00017876,2]
[405319387,1770991846448,-3170.053284,0.00017876,2]
[405319401,1770991942985,200.0,8.7e-05,3]
[405319402,1770991945074,400.0,8.8e-05,3]
[405319403,1770991947177,600.0,8.9e-05,3]
[405319404,1770991949281,800.0,9e-05,3]
[405319405,1770992292895,223.20167626,9e-05,3]
[405319407,1770992617467,-450.0,0.00011053,7]
[405319409,1770992662639,-1200.0,8.891e-05,2]
[405319410,1770992662664,-224.0,8.891e-05,2]
[405319411,1770992662688,-300.0,8.892e-05,2]
[405319412,1770992662712,-222.77083697,8.892e-05,2]
[405319413,1770992662738,-300.0,8.892e-05,2]
[405319414,1770992662767,-150.0,8.892e-05,2]
[405319415,1770992662791,-500.0,8.893e-05,2]
[405319416,1770992662814,-501.53079638,8.893e-05,2]
[405319417,1770992662837,-244.95097778,8.893e-05,2]
[405319418,1770992662860,-615.11537332,8.893e-05,2]
[405319419,1770992662884,-500.0,8.893e-05,2]
[405319420,1770992662908,-500.0,8.893e-05,2]
[405319421,1770992662931,-500.0,8.893e-05,2]
[405319422,1770992662955,-500.0,8.893e-05,2]
[405319423,1770992662978,-500.0,8.893e-05,2]
[405319424,1770992663002,-500.0,8.893e-05,2]
[405319425,1770992663026,-500.0,8.893e-05,2]
[405319426,1770992663050,-500.0,8.893e-05,2]
[405319427,1770992663074,-500.0,8.893e-05,2]
[405319428,1770992663098,-500.0,8.893e-05,2]
[405319429,1770992663122,-249.25,8.9e-05,2]
[405319430,1770992663146,-222.77083696,9.067e-05,2]
[405319431,1770992663175,-1742.5868,9.141e-05,2]
[405319432,1770992663202,-259.7041,9.141e-05,2]
[405319433,1770992663232,-87267.32027859,9.141e-05,2]
[405319434,1770992665505,-1000000.0,9.141e-05,2]
[405319435,1770992701262,-500000.0,9.141e-05,2]
[405319439,1770992739780,-500.0,8.893e-05,2]
[405319440,1770992739806,-500.0,8.893e-05,2]
[405319441,1770992739831,-500.0,8.893e-05,2]
[405319442,1770992739856,-500.0,8.893e-05,2]
[405319443,1770992739882,-500.0,8.893e-05,2]
[405319444,1770992743230,-500.0,8.893e-05,2]
[405319445,1770992743255,-300.0,9.14e-05,2]
[405319446,1770992743281,-1200.0,9.14e-05,2]
[405319447,1770992743304,-355.43285669,9.14e-05,2]
[405319448,1770992743331,-197644.56714331,9.141e-05,2]
[405319449,1770992787533,-1742.5868,9.041e-05,2]
[405319450,1770992787555,-222.77083696,9.14e-05,2]
[405319451,1770992787580,-198034.64236304,9.141e-05,2]
[405319455,1770992835064,200.0,8.6e-05,3]
[405319456,1770992837165,400.0,8.7e-05,3]
[405319457,1770992839266,302.54680505,8.8e-05,3]
[405319458,1770992870939,-1000.0,0.000123,5]
[405319459,1770992872007,-1000.0,0.000123,5]
[405319460,1770992872554,-1000.0,0.000123,5]
[405319461,1770992873070,-1000.0,0.000123,5]
[405319462,1770992873536,-1000.0,0.000123,5]
[405319463,1770992888351,-500.0,0.00013,15]
[405319464,1770992889436,-500.0,0.00013,15]
[405319465,1770992890160,-500.0,0.00013,15]
[405319467,1770992890760,-500.0,0.00013,15]
[405319468,1770992891397,-500.0,0.00013,15]
[405319469,1770992891959,-500.0,0.00013,15]
[405319470,1770992892641,-500.0,0.00013,15]
[405319471,1770992893204,-500.0,0.00013,15]
[405319472,1770992893794,-500.0,0.00013,15]
[405319473,1770992894428,-500.0,0.00013,15]
[405319474,1770992895018,-500.0,0.00013,15]
[405319475,1770992895662,-500.0,0.00013,15]
[405319476,1770992896342,-500.0,0.00013,15]
[405319477,1770992896703,-500.0,0.00013,15]
[405319478,1770992897005,-500.0,0.00013,15]
[405319479,1770992897509,-500.0,0.00013,15]
[405319480,1770992897988,-500.0,0.00013,15]
[405319481,1770992898477,-500.0,0.00013,15]
[405319482,1770992898988,-500.0,0.00013,15]
[405319483,1770992899517,-500.0,0.00013,15]
[405319484,1770992899830,-500.0,0.00013,15]
[405319485,1770992900419,-500.0,0.00013,15]
[405319486,1770992900837,-500.0,0.00013,15]
[405319487,1770992901135,-500.0,0.00013,15]
[405319488,1770992901632,-500.0,0.00013,15]
[405319489,1770992902041,-63.76949661,0.00013,15]
[405319493,1770993031490,-11107.38744749,8.335e-05,2]
[405319496,1770993031502,-1013.82506827,8.335e-05,2]
[405319505,1770993031553,-3794.84900764,8.335e-05,2]
[405319507,1770993031565,-1931.43592063,8.335e-05,2]
[405319508,1770993031626,-1014.31929586,8.335e-05,2]
[405319509,1770993031638,-6952.38326011,8.335e-05,2]
[405319510,1770993031650,-575.16,8.44e-05,2]
[405319511,1770993031660,-500.0,8.558e-05,2]
[405319512,1770993031670,-297.45319495,8.8e-05,3]
[405319513,1770993031679,-800.0,8.9e-05,3]
[405319514,1770993031691,-1000.0,9e-05,3]
[405319515,1770993031701,-151.0,9.036e-05,2]
[405319516,1770993031711,-1200.0,9.037e-05,2]
[405319517,1770993031720,-300.0,9.037e-05,2]
[405319518,1770993031730,-150.0,9.038e-05,2]
[405319519,1770993031743,-500.0,9.038e-05,2]
[405319520,1770993031753,-500.0,9.038e-05,2]
[405319521,1770993031762,-500.0,9.038e-05,2]
[405319523,1770993031772,-621.14002534,9.038e-05,2]
[405319525,1770993031782,-500.0,9.038e-05,2]
[405319527,1770993031791,-419034.65557299,9.039e-05,2]
[405319529,1770993031803,-464.71524213,9.039e-05,2]
[405319533,1770993031825,-7229.45054876,9.039e-05,2]
[405319540,1770993037586,-3073271.17863612,9.039e-05,2]
[405319541,1770993037597,-259.7041,9.041e-05,2]
[405319542,1770993037609,-2500.0,9.041e-05,2]
[405319544,1770993037620,-18535.36355469,9.041e-05,2]
[405319547,1770993037631,-13916.4401,9.141e-05,2]
[405319549,1770993037643,-150.0,9.167e-05,2]
[405319550,1770993037653,-9999.99,9.167e-05,2]
[405319551,1770993037665,-4573.73,9.167e-05,2]
[405319552,1770993037676,-500.0,9.172e-05,2]
[405319553,1770993037687,-327.37458332,9.172e-05,2]
[405319554,1770993037698,-209.72391114,9.172e-05,2]
[405319555,1770993037709,-500.0,9.172e-05,2]
[405319556,1770993037720,-500.0,9.172e-05,2]
[405319557,1770993037732,-306.61140154,9.172e-05,2]
[405319558,1770993037744,-500.0,9.172e-05,2]
[405319559,1770993037756,-240351.6363628,9.173e-05,2]
[405319560,1770993037767,-35294.6280958,9.204e-05,2]
[405319561,1770993037778,-150.0,9.222e-05,2]
[405319562,1770993037790,-1203.47,9.222e-05,2]
[405319563,1770993037800,-500.0,9.223e-05,2]
[405319564,1770993037811,-503.71008588,9.223e-05,2]
[405319565,1770993037823,-500.0,9.223e-05,2]
[405319566,1770993037834,-620.59812274,9.223e-05,2]
[405319567,1770993037845,-500.0,9.223e-05,2]
[405319570,1770993037857,-151.0,9.238e-05,2]
[405319572,1770993037867,-151.0,9.238e-05,2]
[405319574,1770993037878,-1901.79,9.24e-05,2]
[405319576,1770993037889,-196.303,9.24e-05,2]
[405319578,1770993037900,-1500000.0,9.241e-05,2]
[405319580,1770993037911,-10000.0,9.241e-05,2]
[405319582,1770993037921,-32832.125,9.241e-05,2]
[405319585,1770993037932,-150.0,9.277e-05,2]
[405319587,1770993037943,-280.86,9.277e-05,2]
[405319588,1770993037953,-150.0,9.331e-05,2]
[405319589,1770993037965,-311.35,9.331e-05,2]
[405319591,1770993037976,-20374.4,9.331e-05,2]
[405319592,1770993037988,-1184.35,9.331e-05,2]
[405319593,1770993038001,-150.99,9.331e-05,2]
[405319594,1770993038012,-9999.99,9.331e-05,2]
[405319595,1770993038023,-488.97771624,9.332e-05,2]
[405319596,1770993038034,-1064.30176468,9.34e-05,3]
[405319597,1770993038045,-318777.7403274,9.365e-05,2]
[405319598,1770993038056,-500.0,9.437e-05,2]
[405319599,1770993038067,-507.22398632,9.441e-05,2]
[405319600,1770993038079,-1000.0,9.441e-05,2]
[405319601,1770993038090,-987.36366918,9.441e-05,2]
[405319602,1770993038105,-206.85979037,9.726e-05,2]
[405319603,1770993038116,-2311.0,9.726e-05,2]
[405319604,1770993038128,-500.0,9.726e-05,2]
[405319605,1770993038140,-500.0,9.726e-05,2]
[405319606,1770993038151,-150.0,9.726e-05,2]
[405319607,1770993038163,-150.0,9.726e-05,2]
[405319608,1770993038175,-150.0,9.726e-05,2]
[405319609,1770993038186,-150.0,9.726e-05,2]
[405319610,1770993038197,-1000.0,9.771e-05,2]
[405319611,1770993038208,-1000.0,9.771e-05,2]
[405319612,1770993038219,-1000.0,9.771e-05,2]
[405319613,1770993038230,-2311.0,9.781e-05,2]
[405319614,1770993038241,-500.0,9.781e-05,2]
[405319615,1770993038253,-500.0,9.781e-05,2]
[405319616,1770993038264,-150.0,9.781e-05,2]
[405319617,1770993038277,-150.0,9.781e-05,2]
[405319618,1770993038288,-150.0,9.781e-05,2]
[405319619,1770993038298,-250.50360126,9.781e-05,2]
[405319620,1770993038309,-631.54,9.8e-05,2]
[405319621,1770993038320,-2311.0,9.836e-05,2]
[405319622,1770993038331,-500.0,9.836e-05,2]
[405319623,1770993038342,-500.0,9.836e-05,2]
[405319624,1770993038354,-150.0,9.836e-05,2]
[405319625,1770993038364,-200.0,9.836e-05,2]
[405319626,1770993038375,-150.0,9.836e-05,2]
[405319627,1770993038387,-2311.0,9.89e-05,2]
[405319628,1770993038398,-500.0,9.89e-05,2]
[405319629,1770993038409,-500.0,9.89e-05,2]
[405319630,1770993038420,-218.751621,9.89e-05,2]
[405319631,1770993038431,-150.0,9.89e-05,2]
[405319632,1770993038442,-2178.36,9.896e-05,2]
[405319633,1770993038454,-1680.0,9.941e-05,2]
[405319634,1770993038466,-420.0,9.941e-05,2]
[405319635,1770993038480,-255.0,9.942e-05,2]
[405319636,1770993038493,-1314.05995222,9.945e-05,2]
[405319637,1770993038810,-2311.0,9.945e-05,2]
[405319638,1770993038839,-500.0,9.945e-05,2]
[405319639,1770993038855,-500.0,9.945e-05,2]
[405319640,1770993038865,-150.0,9.945e-05,2]
[405319641,1770993038875,-1500.0,9.988e-05,2]
[405319642,1770993038886,-2311.0,0.0001,2]
[405319643,1770993038896,-500.0,0.0001,2]
[405319644,1770993038906,-500.0,0.0001,2]
[405319645,1770993038916,-250.0,0.0001,2]
[405319646,1770993038927,-151.10721361,0.0001,2]
[405319647,1770993038938,-710.47937962,0.0001,2]
[405319648,1770993038948,-270.05,0.0001,2]
[405319649,1770993038959,-151.0,0.0001,2]
[405319650,1770993038969,-151.0,0.0001,2]
[405319651,1770993038978,-151.0,0.0001,2]
[405319652,1770993038988,-151.0,0.0001,2]
[405319653,1770993039000,-151.0,0.0001,2]
[405319654,1770993039010,-151.0,0.0001,2]
[405319655,1770993039021,-151.0,0.0001,2]
[405319656,1770993039032,-151.0,0.0001,2]
[405319657,1770993039043,-151.0,0.0001,2]
[405319658,1770993039055,-151.0,0.0001,2]
[405319659,1770993039066,-151.0,0.0001,2]
[405319660,1770993039077,-151.0,0.0001,2]
[405319661,1770993039088,-151.0,0.0001,2]
[405319662,1770993039100,-151.0,0.0001,2]
[405319663,1770993039112,-151.0,0.0001,2]
[405319664,1770993039124,-151.0,0.0001,2]
[405319665,1770993039136,-151.0,0.0001,2]
[405319666,1770993039147,-151.0,0.0001,2]
[405319667,1770993039158,-151.0,0.0001,2]
[405319668,1770993039169,-151.0,0.0001,2]
[405319669,1770993039179,-1966.0489619,0.0001,2]
[405319670,1770993039190,-22851.20143798,0.0001,2]
[405319671,1770993039200,-642.15267311,0.0001,2]
[405319672,1770993039211,-642.15267311,0.0001,2]
[405319673,1770993039222,-250.0,0.00010054,2]
[405319674,1770993039232,-2311.0,0.00010055,2]
[405319675,1770993039243,-500.0,0.00010055,2]
[405319676,1770993039259,-500.0,0.00010055,2]
[405319677,1770993039270,-260.47970355,0.000101,2]
[405319678,1770993039285,-2311.0,0.0001011,2]
[405319679,1770993039296,-500.0,0.0001011,2]
[405319680,1770993039308,-165.6695728,0.0001011,2]
[405319681,1770993039318,-472.0458014,0.00010115,2]
[405319682,1770993039328,-642.15267311,0.00010142,2]
[405319683,1770993039339,-240351.6363628,0.00010151,2]
[405319685,1770993039353,-2311.0,0.00010164,2]
[405319686,1770993039365,-500.0,0.00010164,2]
[405319687,1770993039384,-35294.6280958,0.00010186,2]
[405319688,1770993039394,-2311.0,0.00010219,2]
[405319689,1770993039404,-500.0,0.00010219,2]
[405319690,1770993039415,-2311.0,0.00010274,2]
[405319691,1770993039434,-500.0,0.00010274,2]
[405319692,1770993039451,-270.05,0.00010274,2]
[405319693,1770993039461,-322.49335073,0.00010305,2]
[405319694,1770993039471,-1500.0,0.00010318,2]
[405319695,1770993039490,-1500.0,0.00010318,2]
[405319696,1770993039506,-1500.0,0.00010318,2]
[405319697,1770993039516,-2311.0,0.00010329,2]
[405319698,1770993039526,-500.0,0.00010329,2]
[405319699,1770993039543,-238.4124,0.00010336,2]
[405319700,1770993039556,-2311.0,0.00010384,2]
[405319701,1770993039566,-500.0,0.00010384,2]
[405319702,1770993039575,-2311.0,0.00010438,2]
[405319704,1770993039588,-500.0,0.00010438,2]
[405319706,1770993039598,-2311.0,0.00010493,2]
[405319707,1770993039614,-500.0,0.00010493,2]
[405319708,1770993039624,-2000.0,0.00010536,2]
[405319709,1770993039633,-2311.0,0.00010548,2]
[405319710,1770993039646,-500.0,0.00010548,2]
[405319711,1770993039660,-270.05,0.00010548,2]
[405319712,1770993039671,-2311.0,0.00010603,2]
[405319713,1770993039683,-500.0,0.00010603,2]
[405319714,1770993039693,-2311.0,0.00010658,2]
[405319715,1770993039706,-215.85501438,0.00010658,2]
[405319716,1770993039717,-268.96643021,0.000107,2]
[405319717,1770993039728,-2311.0,0.00010712,2]
[405319718,1770993039741,-2311.0,0.00010767,2]
[405319719,1770993039758,-632.2594873,0.000108,2]
[405319720,1770993039771,-2311.0,0.00010822,2]
[405319721,1770993039785,-270.05,0.00010822,2]
[405319722,1770993039796,-766.54635509,0.00010866,2]
[405319723,1770993039810,-2000.0,0.00010866,2]
[405319724,1770993039823,-1077.28043664,0.00010866,2]
[405319725,1770993039835,-2311.0,0.00010877,2]
[405319726,1770993039847,-200.0,0.000109,3]
[405319727,1770993039859,-2311.0,0.00010931,2]
[405319728,1770993039869,-2351.0,0.00010935,2]
[405319729,1770993039880,-587.0,0.00010935,2]
[405319730,1770993039893,-433.0,0.00010937,2]
[405319731,1770993039904,-150.0,0.00010959,2]
[405319732,1770993039916,-16883.32,0.00010959,2]
[405319733,1770993039929,-151.0,0.00010986,2]
[405319734,1770993039942,-2323.82598324,0.00010986,2]
[405319735,1770993039953,-9448.28379857,0.00011,2]
[405319736,1770993039963,-2500.0,0.00011084,2]
[405319737,1770993039973,-270.09344325,0.00011096,2]
[405319738,1770993039985,-41389.18372873,0.00011099,2]
[405319739,1770993040001,-41389.18372864,0.00011099,2]
[405319740,1770993040014,-41389.18372864,0.00011099,2]
[405319741,1770993040024,-41389.18372864,0.00011099,2]
[405319742,1770993040035,-81996.51310518,0.00011099,2]
[405319743,1770993040047,-81996.51310509,0.00011099,2]
[405319744,1770993040058,-81996.51310509,0.00011099,2]
[405319745,1770993040071,-81996.51310509,0.00011099,2]
[405319746,1770993040082,-5210.37912189,0.00011099,2]
[405319747,1770993040097,-1168.88642581,0.00011099,2]
[405319748,1770993040111,-15872.94042967,0.00011099,2]
[405319749,1770993040132,-1777.0,0.00011099,2]
[405319750,1770993040145,-3753.19685657,0.00011099,2]
[405319751,1770993040492,-904.82,0.00011099,2]
[405319752,1770993040506,-388.96037108,0.00011099,2]
[405319753,1770993040517,-6232.53588318,0.00011099,2]
[405319754,1770993040723,-41389.18372864,0.00011099,2]
[405319755,1770993040733,-46687.79401689,0.00011099,2]
[405319756,1770993040743,-81996.51310509,0.00011099,2]
[405319757,1770993040755,-81996.51310509,0.00011099,2]
[405319758,1770993040765,-81996.51310509,0.00011099,2]
[405319759,1770993040775,-72428.46207284,0.00011099,2]
[405319760,1770993040787,-9568.05103225,0.00011099,2]
[405319761,1770993040797,-22297.38675913,0.00011099,2]
[405319762,1770993040820,-886.36161776,0.00011099,2]
[405319763,1770993040836,-58812.7647282,0.00011099,2]
[405319764,1770993040847,-151.0,0.00011099,2]
[405319765,1770993040857,-151.0,0.00011099,2]
[405319766,1770993040867,-151.0,0.00011099,2]
[405319767,1770993040877,-151.0,0.00011099,2]
[405319768,1770993040886,-43458.0,0.000111,2]
[405319769,1770993040896,-240351.6363628,0.0001113,2]
[405319770,1770993040906,-35294.6280958,0.00011167,2]
[405319771,1770993040915,-246.0,0.00011233,2]
[405319772,1770993040924,-199.71,0.00011281,2]
[405319773,1770993040934,-250.0,0.00011308,2]
[405319774,1770993040943,-2500.0,0.00011414,2]
[405319775,1770993040952,-5531.0,0.000116,3]
[405319776,1770993040962,-194.92260426,0.00011632,2]
[405319777,1770993040971,-2947.61473378,0.00011962,2]
[405319778,1770993040980,-5531.0,0.00012,5]
[405319779,1770993040989,-823.0,0.00012029,2]
[405319780,1770993041003,-3292.0,0.00012029,2]
[405319781,1770993041013,-736.0,0.0001203,2]
[405319782,1770993041023,-151.0,0.00012108,2]
[405319783,1770993041033,-240351.6363628,0.00012108,2]
[405319784,1770993041043,-35294.6280958,0.00012149,2]